bitfinex/quotes_BTCUSD_20240826
["timestamp","ask_amount","ask_price","bid_price","bid_amount"]
[1724676319285,0.012,63694.0,63693.0,0.305225]
[1724676319457,0.012,63694.0,63693.0,0.503825]
[1724676322488,0.012,63694.0,63693.0,1.46901801]
[1724676322759,0.012,63694.0,63693.0,1.48616087]
[1724676322971,0.012,63694.0,63693.0,1.80016687]
[1724676323183,0.007,63694.0,63693.0,1.80016687]
[1724676323400,0.007,63694.0,63693.0,0.70014587]
[1724676323603,0.007,63694.0,63693.0,0.52096786]
[1724676323604,0.164,63694.0,63693.0,0.52096786]
[1724676323815,0.007,63694.0,63693.0,0.503825]
[1724676324050,0.157,63694.0,63693.0,0.503825]
[1724676324261,0.157,63694.0,63693.0,0.504825]
[1724676324668,0.15790551,63696.0,63693.0,0.504825]
[1724676324872,0.156999,63695.0,63693.0,0.503825]
[1724676325093,0.00090751,63696.0,63693.0,0.503825]
[1724676325094,0.002,63694.0,63693.0,0.503825]
[1724676325565,0.158,63694.0,63693.0,0.305225]
[1724676325773,0.156998,63695.0,63693.0,0.305225]
[1724676325976,0.471001,63694.0,63693.0,0.307225]
[1724676326202,0.785002,63694.0,63693.0,0.307225]
[1724676326413,0.471001,63694.0,63693.0,0.305225]
[1724676326619,0.472001,63694.0,63693.0,0.307225]
[1724676327020,0.471001,63694.0,63693.0,0.305225]
[1724676327232,0.471001,63694.0,63693.0,0.306225]
[1724676327439,0.47290051,63696.0,63693.0,0.306225]
[1724676327652,0.31590251,63696.0,63693.0,0.305225]
[1724676327863,0.314001,63694.0,63693.0,0.305225]
[1724676328065,0.471001,63694.0,63693.0,0.306225]
[1724676328692,0.02,63695.0,63693.0,0.305225]
[1724676329112,0.02,63695.0,63693.0,0.306225]
[1724676329533,0.157,63694.0,63693.0,0.306225]
[1724676329760,0.159,63694.0,63693.0,0.305225]
[1724676329973,0.473001,63694.0,63693.0,0.000825]
[1724676330801,0.473001,63694.0,63693.0,0.001825]
[1724676331013,0.471001,63694.0,63693.0,0.001825]
[1724676332468,0.473001,63694.0,63693.0,0.001825]
[1724676332672,0.002,63694.0,63693.0,0.001825]
[1724676334866,0.159,63694.0,63693.0,0.001825]
[1724676335069,0.159,63694.0,63693.0,0.328925]
[1724676335070,0.002,63694.0,63693.0,0.328925]
[1724676335496,0.002,63694.0,63693.0,0.50307254]
[1724676335703,0.002,63694.0,63693.0,1.53363157]
[1724676335910,0.002,63694.0,63693.0,1.84763757]
[1724676336118,0.002,63694.0,63693.0,1.86237822]
[1724676336324,0.002,63694.0,63693.0,1.8359092]
[1724676336528,0.002,63694.0,63693.0,1.8349092]
[1724676337164,0.003,63694.0,63693.0,2.11803001]
[1724676337374,0.00090751,63696.0,63695.0,1.532386]
[1724676337602,0.00090751,63696.0,63695.0,1.71156401]
[1724676337870,0.00090751,63696.0,63695.0,1.72870404]
[1724676338686,0.00190751,63696.0,63695.0,1.72970404]
[1724676339093,0.00190751,63696.0,63695.0,1.72870404]
[1724676339299,0.00090751,63696.0,63695.0,2.04270004]
[1724676339727,0.00090751,63696.0,63695.0,2.07028118]
[1724676339728,0.00190751,63696.0,63695.0,2.07028118]
[1724676340146,0.00190751,63696.0,63695.0,2.06628118]
[1724676340147,0.00090751,63696.0,63695.0,2.06628118]
[1724676340360,0.00190751,63696.0,63695.0,2.07027971]
[1724676340561,0.00290751,63696.0,63695.0,2.07127971]
[1724676340800,0.00190751,63696.0,63695.0,2.06727971]
[1724676341204,0.00090751,63696.0,63695.0,2.06627971]
[1724676341610,0.00190751,63696.0,63695.0,2.06727971]
[1724676341816,0.46876099,63717.0,63712.0,0.78578]
[1724676342031,0.46876099,63717.0,63712.0,1.43019701]
[1724676342234,0.00090751,63719.0,63712.0,1.43019701]
[1724676343311,0.00190751,63713.0,63712.0,1.12028501]
[1724676343521,0.00190751,63713.0,63712.0,0.52031638]
[1724676343725,0.00190751,63713.0,63712.0,0.50317801]
[1724676344601,0.00290751,63713.0,63712.0,0.50517801]
[1724676345847,0.156932,63722.0,63712.0,0.50517801]
[1724676345848,0.156934,63721.0,63712.0,0.349]
[1724676346059,0.156936,63720.0,63713.0,0.023]
[1724676346267,0.156939,63719.0,63713.0,0.023]
[1724676346470,0.02,63714.0,63713.0,0.023]
[1724676348475,0.02,63714.0,63713.0,0.03]
[1724676348685,0.021,63714.0,63713.0,0.03]
[1724676348905,0.021,63714.0,63713.0,0.026]
[1724676349274,0.022,63714.0,63713.0,0.031]
[1724676349698,0.022,63714.0,63713.0,0.008]
[1724676350337,0.021,63714.0,63713.0,0.005]
[1724676350744,0.022,63714.0,63713.0,0.008]
[1724676351410,0.021,63714.0,63713.0,0.003]
[1724676351846,1.291555,63714.0,63713.0,0.003]
[1724676352064,1.605457,63714.0,63713.0,0.003]
[1724676352436,1.291555,63714.0,63713.0,0.004]
[1724676352648,0.977653,63714.0,63713.0,0.004]
[1724676352862,1.291555,63714.0,63713.0,0.004]
[1724676353026,0.47086,63713.0,63712.0,0.000825]
[1724676353232,0.784767,63713.0,63712.0,0.000825]
[1724676354776,0.785767,63713.0,63712.0,0.000825]
[1724676355700,0.786767,63713.0,63712.0,0.004825]
[1724676358731,0.002,63713.0,63712.0,0.004825]
[1724676360397,0.158953,63713.0,63712.0,0.004825]
[1724676360600,0.002,63713.0,63712.0,0.004825]
[1724676361437,0.002,63713.0,63712.0,0.027825]
[1724676362061,0.002,63713.0,63712.0,0.209425]
[1724676362215,0.002,63713.0,63712.0,0.22656444]
[1724676362425,0.002,63713.0,63712.0,0.209425]
[1724676362627,0.002,63713.0,63712.0,0.504125]
[1724676362827,0.002,63713.0,63712.0,0.52126416]
[1724676363038,0.002,63713.0,63712.0,1.14931017]
[1724676363244,0.002,63713.0,63712.0,0.83539817]
[1724676363473,0.002,63713.0,63712.0,1.14931017]
[1724676363855,0.002,63713.0,63712.0,0.322525]
[1724676364054,0.001,63713.0,63712.0,0.322525]
[1724676364278,0.002,63713.0,63712.0,0.325525]
[1724676364492,0.002,63713.0,63712.0,0.030825]
[1724676364691,0.001,63713.0,63712.0,0.026825]
[1724676364893,0.02,63714.0,63712.0,0.000825]
[1724676365094,0.02,63714.0,63712.0,0.009825]
[1724676365095,0.001,63713.0,63712.0,0.009825]
[1724676365272,0.02,63714.0,63712.0,0.000825]
[1724676365727,0.001,63713.0,63712.0,0.009825]
[1724676366073,0.02,63714.0,63712.0,0.000825]
[1724676366438,0.02,63714.0,63712.0,0.003825]
[1724676366648,0.001,63713.0,63712.0,0.015825]
[1724676366778,0.001,63713.0,63712.0,0.012825]
[1724676366977,0.001,63713.0,63712.0,0.015825]
[1724676367177,0.002,63713.0,63712.0,0.015825]
[1724676367778,0.001,63713.0,63712.0,0.003825]
[1724676368200,0.001,63713.0,63712.0,0.012825]
[1724676368650,0.001,63713.0,63712.0,0.003825]
[1724676369451,0.002,63713.0,63712.0,0.012825]
[1724676371086,0.158953,63713.0,63712.0,0.012825]
[1724676372622,0.002,63713.0,63712.0,0.012825]
[1724676373233,0.158953,63713.0,63712.0,0.012825]
[1724676373730,0.002,63713.0,63712.0,0.012825]
[1724676373936,0.158953,63713.0,63712.0,0.012825]
[1724676374671,0.002,63713.0,63712.0,0.518625]
[1724676374897,0.002,63713.0,63712.0,0.541625]
[1724676376050,0.002,63713.0,63712.0,0.85475901]
[1724676376761,0.002,63713.0,63712.0,1.16967101]
[1724676376959,0.002,63713.0,63712.0,1.48358301]
[1724676377562,0.001,63713.0,63712.0,1.48058301]
[1724676377997,0.001,63713.0,63712.0,1.78849501]
[1724676378401,0.001,63713.0,63712.0,1.80249501]
[1724676378402,0.002,63713.0,63712.0,1.80249501]
[1724676379135,0.001,63713.0,63712.0,1.78849501]
[1724676379558,0.00090751,63724.0,63723.0,1.283445]
[1724676379735,0.00090751,63724.0,63723.0,1.46262301]
[1724676380053,0.00090751,63724.0,63723.0,1.14876501]
[1724676380637,0.00090751,63724.0,63723.0,1.46262301]
[1724676381781,0.00090751,63724.0,63723.0,1.77648101]
[1724676382245,0.00190751,63724.0,63723.0,1.79048101]
[1724676382682,0.00290751,63724.0,63723.0,1.80448101]
[1724676383322,0.00271864,63724.0,63723.0,1.80448101]
[1724676384362,0.00271864,63724.0,63723.0,2.11833901]
[1724676384984,0.00271864,63724.0,63723.0,2.21833901]
[1724676385401,0.00171864,63724.0,63723.0,2.20433901]
[1724676386015,0.00071864,63724.0,63723.0,2.19033901]
[1724676386317,0.00071864,63724.0,63723.0,2.20433901]
[1724676386498,0.00171864,63724.0,63723.0,2.21833901]
[1724676386701,0.00071864,63724.0,63723.0,2.19033901]
[1724676387121,0.00171864,63724.0,63723.0,2.21833901]
[1724676387537,0.00171864,63724.0,63723.0,2.20433901]
[1724676387740,0.00171864,63724.0,63723.0,2.21833901]
[1724676388500,0.00171864,63724.0,63723.0,2.20433901]
[1724676388727,0.00071864,63724.0,63723.0,2.20433901]
[1724676388932,0.00071864,63724.0,63723.0,2.21833901]
[1724676393439,0.00071864,63724.0,63723.0,1.70118101]
[1724676393638,0.1975,63733.0,63732.0,0.470721]
[1724676393639,0.19412725,63733.0,63732.0,0.470721]
[1724676394079,0.20123759,63733.0,63732.0,0.62689901]
[1724676394285,0.00711034,63733.0,63732.0,0.94071301]
[1724676394715,0.3094,63738.0,63733.0,0.470713]
[1724676394914,0.009086,63743.0,63733.0,0.96470001]
[1724676395125,0.0080172,63734.0,63733.0,0.96470001]
[1724676395380,0.00090751,63734.0,63733.0,1.27850901]
[1724676395826,0.00090751,63734.0,63733.0,0.96470001]
[1724676396457,0.00090751,63734.0,63733.0,1.29250901]
[1724676397532,0.00090751,63734.0,63733.0,1.30550901]
[1724676397962,0.00090751,63734.0,63733.0,1.29250901]
[1724676398170,0.00090751,63734.0,63733.0,1.27850901]
[1724676398373,0.00090751,63734.0,63733.0,1.29250901]
[1724676399464,0.00090751,63734.0,63733.0,1.30650901]
[1724676402871,0.00090751,63734.0,63733.0,1.33295927]
[1724676404097,0.00090751,63734.0,63733.0,1.62100901]
[1724676405082,0.00090751,63734.0,63733.0,1.64745889]
[1724676405329,0.00090751,63734.0,63733.0,1.33295889]
[1724676405579,0.18680751,63734.0,63733.0,0.70534089]
[1724676405830,0.18680751,63734.0,63733.0,1.01914989]
[1724676406065,0.00806319,63734.0,63733.0,0.99270001]
[1724676406313,0.00090751,63734.0,63733.0,0.99270001]
[1724676406547,0.00806319,63734.0,63733.0,0.99270001]
[1724676406786,0.00090751,63734.0,63733.0,0.99270001]
[1724676407014,0.00806319,63734.0,63733.0,0.99270001]
[1724676407181,0.00090751,63734.0,63733.0,1.01915204]
[1724676407414,0.00806319,63734.0,63733.0,1.01915204]
[1724676407539,0.00090751,63734.0,63733.0,1.01915204]
[1724676407727,0.00806319,63734.0,63733.0,1.01915204]
[1724676407933,0.00090751,63734.0,63733.0,1.62956104]
[1724676408139,0.00090751,63734.0,63733.0,1.31575204]
[1724676408140,0.00806028,63734.0,63733.0,1.31575204]
[1724676408335,0.00090751,63734.0,63733.0,1.31575204]
[1724676408547,0.00090751,63734.0,63733.0,1.62956104]
[1724676409198,0.00090751,63734.0,63733.0,1.64429254]
[1724676409559,0.00090751,63734.0,63733.0,1.03388354]
[1724676409762,0.00090751,63734.0,63733.0,1.01997704]
[1724676409976,0.00805537,63734.0,63733.0,1.33378571]
[1724676410199,0.00805537,63734.0,63733.0,1.32206552]
[1724676410200,0.00090751,63734.0,63733.0,1.32206552]
[1724676412993,0.00090751,63734.0,63733.0,1.32206487]
[1724676415959,0.00090751,63734.0,63733.0,1.82333425]
[1724676416164,0.00090751,63734.0,63733.0,1.82333168]
[1724676416362,0.00090751,63734.0,63733.0,2.13714068]
[1724676417281,0.00090751,63734.0,63733.0,1.62053168]
[1724676417782,0.00090751,63734.0,63733.0,1.60653168]
[1724676418184,0.00090751,63734.0,63733.0,1.62053168]
[1724676418387,0.00090751,63734.0,63733.0,2.0325371]
[1724676418622,0.00090751,63734.0,63733.0,1.60653168]
[1724676418829,0.00090751,63734.0,63733.0,2.03253767]
[1724676419037,0.00090751,63734.0,63733.0,2.04653767]
[1724676419252,0.00090751,63734.0,63733.0,1.93434068]
[1724676419455,0.00090751,63734.0,63733.0,2.03253755]
[1724676419655,0.00090751,63734.0,63733.0,1.93434068]
[1724676419862,0.00090751,63734.0,63733.0,1.94834068]
[1724676420972,0.00090751,63734.0,63733.0,2.04653755]
[1724676421202,0.00090751,63734.0,63733.0,1.94834068]
[1724676421411,0.00090751,63734.0,63733.0,2.04653839]
[1724676421620,0.00090751,63734.0,63733.0,2.00824072]
[1724676421820,0.00090751,63734.0,63733.0,1.94833978]
[1724676422047,0.00090751,63734.0,63733.0,2.04653712]
[1724676422254,0.00090751,63734.0,63733.0,1.94833988]
[1724676423079,0.00090751,63734.0,63733.0,2.04653653]
[1724676423293,0.00090751,63734.0,63733.0,1.94833988]
[1724676423716,0.00090751,63734.0,63733.0,2.04653705]
[1724676424325,0.00090751,63734.0,63733.0,1.95685581]
[1724676424579,0.00090751,63734.0,63733.0,2.0550522]
[1724676424782,0.00090751,63734.0,63733.0,1.97398633]
[1724676425018,0.00090751,63734.0,63733.0,2.07218273]
[1724676425220,0.00090751,63734.0,63733.0,2.09558913]
[1724676425695,0.00090751,63734.0,63733.0,2.31898788]
[1724676425921,0.00090751,63734.0,63733.0,2.24876868]
[1724676426137,0.00090751,63734.0,63733.0,2.34239428]
[1724676426361,0.00090751,63734.0,63733.0,2.38241309]
[1724676427214,0.00090751,63734.0,63733.0,2.4058195]
[1724676428040,0.00090751,63734.0,63733.0,2.34867017]
[1724676428450,0.00090751,63734.0,63733.0,2.36580038]
[1724676429615,0.00090751,63734.0,63733.0,2.36602657]
[1724676429854,0.00090751,63734.0,63733.0,2.83673657]
[1724676430058,0.00090751,63734.0,63733.0,2.81960636]
[1724676430263,0.00090751,63734.0,63733.0,2.86318448]
[1724676431131,0.00090751,63734.0,63733.0,2.96318448]
[1724676433653,0.00090751,63734.0,63733.0,3.00148018]
[1724676435543,0.00090751,63734.0,63733.0,3.02033345]
[1724676436195,0.00090751,63734.0,63733.0,3.12934932]
[1724676436611,0.00090751,63734.0,63733.0,3.13185942]
[1724676437601,0.00071866,63734.0,63733.0,3.13185942]
[1724676437836,0.00071866,63734.0,63733.0,3.13185935]
[1724676438044,0.00071866,63734.0,63733.0,3.29535753]
[1724676438251,0.00071866,63734.0,63733.0,3.02284348]
[1724676438457,0.00071866,63734.0,63733.0,3.29535753]
[1724676438996,0.00071866,63734.0,63733.0,2.95219048]
[1724676440509,0.00071866,63734.0,63733.0,3.14569048]
[1724676440712,0.00071866,63734.0,63733.0,3.15138574]
[1724676440935,0.00071866,63734.0,63733.0,3.17023579]
[1724676441119,0.00071866,63734.0,63733.0,3.14568906]
[1724676442602,0.00071866,63734.0,63733.0,3.17023605]
[1724676442832,0.00071866,63734.0,63733.0,2.97673567]
[1724676443168,0.00071866,63734.0,63733.0,2.95218906]
[1724676443597,0.00071866,63734.0,63733.0,3.13216365]
[1724676443798,0.00071866,63734.0,63733.0,3.1757401]
[1724676444026,0.00071866,63734.0,63733.0,3.17573879]
[1724676446132,0.00071866,63734.0,63733.0,3.2002862]
[1724676447085,0.00071866,63734.0,63733.0,3.68464779]
[1724676447329,0.00071866,63734.0,63733.0,3.32726076]
[1724676447539,0.00071866,63734.0,63733.0,3.51194856]
[1724676447761,0.00071866,63734.0,63733.0,3.68464492]
[1724676448143,0.00071866,63734.0,63733.0,3.82575756]
[1724676448374,0.00071866,63734.0,63733.0,3.81175756]
[1724676448572,0.00071866,63734.0,63733.0,3.82575756]
[1724676448950,0.00071866,63734.0,63733.0,3.79775756]
[1724676449375,0.00071866,63734.0,63733.0,3.82575756]
[1724676449546,0.00071866,63734.0,63733.0,3.68464492]
[1724676449770,0.00071866,63734.0,63733.0,3.67064492]
[1724676450689,0.00071866,63734.0,63733.0,3.65664492]
[1724676450897,0.00071866,63734.0,63733.0,3.67064492]
[1724676451723,0.00071866,63734.0,63733.0,3.68464492]
[1724676452015,0.00071866,63734.0,63733.0,3.67064492]
[1724676452159,0.00071866,63734.0,63733.0,3.79775756]
[1724676452360,0.00071866,63734.0,63733.0,3.81569548]
[1724676452571,0.00071866,63734.0,63733.0,3.98831075]
[1724676453503,0.00071866,63734.0,63733.0,3.42279857]
[1724676453674,0.00071866,63734.0,63733.0,3.68838828]
[1724676455033,0.00071866,63734.0,63733.0,3.98780222]
[1724676455234,0.00071866,63734.0,63733.0,3.68838828]
[1724676455408,0.00071866,63734.0,63733.0,3.66194219]
[1724676455617,0.00071866,63734.0,63733.0,3.2941123]
[1724676455821,0.00071866,63734.0,63733.0,2.59161914]
[1724676456023,0.00071866,63734.0,63733.0,2.86413319]
[1724676456438,0.00071866,63734.0,63733.0,3.17794219]
[1724676456731,0.00071866,63734.0,63733.0,2.78986217]
[1724676456932,0.00071866,63734.0,63733.0,2.86592966]
[1724676457494,0.00071866,63734.0,63733.0,2.89237577]
[1724676457697,0.00071866,63734.0,63733.0,2.59686172]
[1724676457916,0.00071866,63734.0,63733.0,1.94280507]
[1724676457917,0.48881866,63734.0,63733.0,1.94280507]
[1724676458068,0.48881866,63734.0,63733.0,0.73686803]
[1724676458290,0.48881866,63734.0,63733.0,1.14355508]
[1724676458525,0.48881866,63734.0,63733.0,0.51766407]
[1724676458742,0.64572066,63734.0,63733.0,0.472535]
[1724676458959,1.2806028,63734.0,63733.0,0.272535]
[1724676459228,1.2806028,63734.0,63733.0,0.300535]
[1724676459429,1.2806028,63734.0,63733.0,0.029]
[1724676459637,1.2806028,63734.0,63723.0,0.000825]
[1724676459638,0.156913,63730.0,63723.0,0.000825]
[1724676459845,0.4774,63728.0,63723.0,0.000825]
[1724676460253,0.15691,63731.0,63723.0,0.000825]
[1724676460254,0.4874,63727.0,63723.0,0.000825]
[1724676460463,0.4874,63726.0,63723.0,0.003825]
[1724676460659,0.00719594,63727.0,63723.0,0.003825]
[1724676460660,0.2899,63724.0,63723.0,0.003825]
[1724676460857,0.4874,63724.0,63723.0,0.003825]
[1724676461075,0.49454443,63724.0,63723.0,0.003825]
[1724676461277,0.49454443,63724.0,63723.0,0.63079001]
[1724676461490,0.49454443,63724.0,63723.0,0.96378417]
[1724676461705,0.49454443,63724.0,63723.0,0.98978417]
[1724676461922,0.4874,63724.0,63723.0,0.98978417]
[1724676462139,0.49454422,63724.0,63723.0,0.98978417]
[1724676462540,0.49454422,63724.0,63723.0,1.31364217]
[1724676462541,0.49554422,63724.0,63723.0,1.31364217]
[1724676462759,0.49554422,63724.0,63723.0,1.31064217]
[1724676462993,0.49554422,63724.0,63723.0,1.32764064]
[1724676462994,0.49654422,63724.0,63723.0,1.32764064]
[1724676463432,0.49554422,63724.0,63723.0,0.68392464]
[1724676463659,0.49554422,63724.0,63723.0,0.03395976]
[1724676463877,0.49554422,63724.0,63723.0,0.013825]
[1724676464104,0.4884,63724.0,63723.0,0.013825]
[1724676464342,0.49555729,63724.0,63723.0,0.013825]
[1724676465003,0.49655729,63724.0,63723.0,0.014825]
[1724676465417,0.49655729,63724.0,63723.0,0.013825]
[1724676465418,0.49555729,63724.0,63723.0,0.013825]
[1724676465839,0.49655729,63724.0,63723.0,0.014825]
[1724676467204,0.49655729,63724.0,63723.0,0.64179001]
[1724676467422,0.49655729,63724.0,63723.0,0.97864801]
[1724676467645,0.4894,63724.0,63723.0,0.99578324]
[1724676467859,0.4894,63724.0,63723.0,1.31064124]
[1724676468086,0.49652435,63724.0,63723.0,1.31064124]
[1724676468309,0.4894,63724.0,63723.0,1.31064124]
[1724676468531,0.00913871,63724.0,63723.0,1.31064124]
[1724676468963,0.00904793,63724.0,63723.0,1.31064124]
[1724676469181,0.00904793,63724.0,63723.0,1.29350601]
[1724676469403,0.00904793,63724.0,63723.0,1.31464035]
[1724676470119,0.002,63724.0,63723.0,1.31064035]
[1724676470335,0.002,63724.0,63723.0,1.31464035]
[1724676470775,0.002,63724.0,63723.0,1.31064079]
[1724676471211,0.002,63724.0,63723.0,1.31464079]
[1724676471677,0.002,63724.0,63723.0,1.31064079]
[1724676472117,0.002,63724.0,63723.0,1.31464079]
[1724676472536,0.002,63724.0,63723.0,1.31064079]
[1724676473369,0.002,63724.0,63723.0,1.62449879]
[1724676476089,0.002,63724.0,63723.0,1.90409879]
[1724676479936,0.00181115,63724.0,63723.0,1.90409879]
[1724676480640,0.00181115,63724.0,63723.0,2.41385679]
[1724676480841,0.00181115,63724.0,63723.0,2.51385679]
[1724676481637,0.00081115,63724.0,63723.0,2.19899879]
[1724676481843,0.00090751,63733.0,63732.0,1.099349]
[1724676482042,0.00090751,63733.0,63732.0,1.29566179]
[1724676482251,0.30373482,63733.0,63732.0,0.98184779]
[1724676482456,0.30373482,63733.0,63732.0,0.98084779]
[1724676482457,0.29660751,63733.0,63732.0,0.98084779]
[1724676482712,0.30373669,63733.0,63732.0,0.98084779]
[1724676483173,0.50263669,63733.0,63732.0,0.66703379]
[1724676483390,0.50263669,63733.0,63732.0,0.68003379]
[1724676483591,0.50363669,63733.0,63732.0,0.68003379]
[1724676484236,0.50363669,63733.0,63732.0,1.00784779]
[1724676484668,0.50363669,63733.0,63732.0,0.99071301]
[1724676484874,0.50363669,63733.0,63732.0,1.00784661]
[1724676486355,0.50363669,63733.0,63732.0,0.69403261]
[1724676488142,0.50363669,63733.0,63732.0,1.00784661]
[1724676490359,0.50363669,63733.0,63732.0,1.00884661]
[1724676490494,0.00903669,63733.0,63732.0,1.92467461]
[1724676490696,0.00903669,63733.0,63732.0,2.02467461]
[1724676490922,0.00190751,63733.0,63732.0,2.02467461]
[1724676491322,0.00190751,63733.0,63732.0,2.33848861]
[1724676491529,0.00190751,63733.0,63732.0,2.30735501]
[1724676491701,0.00190751,63733.0,63732.0,2.48885501]
[1724676491908,0.00190751,63733.0,63732.0,2.50285501]
[1724676492283,0.00090751,63733.0,63732.0,2.48985501]
[1724676492512,0.00090751,63733.0,63732.0,2.57404326]
[1724676492815,0.00070746,63733.0,63732.0,2.60204326]
[1724676493350,0.00070746,63733.0,63732.0,2.50385501]
[1724676493551,0.00070746,63733.0,63732.0,2.48985501]
[1724676493969,0.00070746,63733.0,63732.0,2.50385501]
[1724676494193,0.00070746,63733.0,63732.0,2.48985501]
[1724676494400,0.00907501,63775.0,63770.0,1.254508]
[1724676494605,0.00907501,63775.0,63774.0,0.62758801]
[1724676494813,0.00907501,63775.0,63774.0,0.94119501]
[1724676495017,0.48037501,63775.0,63774.0,0.156803]
[1724676495423,0.48037501,63775.0,63774.0,0.15617801]
[1724676495633,0.48037501,63775.0,63774.0,0.31298101]
[1724676495860,0.48037501,63775.0,63774.0,0.33598101]
[1724676496079,0.48237501,63775.0,63774.0,0.33598101]
[1724676496277,0.48237501,63775.0,63774.0,0.64958801]
[1724676496538,0.48237501,63775.0,63774.0,0.66358801]
[1724676496897,0.48237501,63775.0,63774.0,0.64958801]
[1724676497444,0.48237501,63775.0,63774.0,0.168803]
[1724676497597,0.2834,63774.0,63770.0,0.001]
[1724676498001,0.2834,63774.0,63767.0,0.01177882]
[1724676498002,0.3038,63772.0,63767.0,0.01177882]
[1724676498412,0.3038,63772.0,63763.0,0.313661]
[1724676498753,0.3038,63772.0,63764.0,0.15617801]
[1724676498961,0.3038,63772.0,63766.0,0.156823]
[1724676499154,0.3038,63772.0,63756.0,0.001]
[1724676499155,0.5051353,63771.0,63770.0,0.008]
[1724676499365,0.502,63771.0,63770.0,0.008]
[1724676499584,0.3,63770.0,63758.0,0.156842]
[1724676499800,0.3,63767.0,63763.0,0.014]
[1724676499993,0.3,63767.0,63764.0,0.01]
[1724676501189,0.3,63767.0,63761.0,0.313671]
[1724676501609,0.3,63767.0,63763.0,0.156829]
[1724676502488,0.3,63767.0,63761.0,0.161833]
[1724676502688,0.3,63767.0,63764.0,0.156827]
[1724676502837,0.3,63767.0,63761.0,0.005]
[1724676503038,0.2925,63765.0,63763.0,0.01]
[1724676503395,0.2925,63765.0,63763.0,0.005]
[1724676504007,0.2925,63765.0,63763.0,0.16183]
[1724676504221,0.2925,63765.0,63763.0,0.005]
[1724676504441,0.2925,63765.0,63764.0,0.000824]
[1724676504655,0.9594113,63765.0,63764.0,0.000824]
[1724676504883,1.42924031,63765.0,63764.0,0.000824]
[1724676505541,1.52924031,63765.0,63764.0,0.000824]
[1724676505770,0.3009,63752.0,63742.0,0.31376]
[1724676505968,0.2016353,63751.0,63744.0,0.156876]
[1724676506180,0.3009,63750.0,63744.0,0.156876]
[1724676506391,0.2016353,63751.0,63738.0,0.313781]
[1724676506392,0.3089353,63749.0,63745.0,0.156873]
[1724676506591,0.3058,63749.0,63746.0,0.156871]
[1724676506843,0.3058,63749.0,63735.0,0.001]
[1724676506844,0.3058,63749.0,63737.0,0.02645069]
[1724676507045,0.3058,63749.0,63745.0,0.156872]
[1724676507244,0.3008,63749.0,63746.0,0.156872]
[1724676507457,0.3008,63749.0,63744.0,0.007]
[1724676507668,0.3008,63749.0,63748.0,0.470602]
[1724676508990,0.1985,63751.0,63750.0,0.470587]
[1724676509200,0.1,63765.0,63750.0,0.15617801]
[1724676509201,0.1994,63764.0,63750.0,0.15617801]
[1724676509404,0.1,63763.0,63757.0,0.156844]
[1724676509755,0.1,63763.0,63755.0,0.156848]
[1724676510311,0.1,63763.0,63753.0,0.31371]
[1724676510312,0.2999,63762.0,63754.0,0.156852]
[1724676510512,0.2999,63760.0,63754.0,0.156852]
[1724676511422,0.2999,63760.0,63753.0,0.31371]
[1724676511647,0.2999,63760.0,63754.0,0.156851]
[1724676512065,0.3019,63760.0,63754.0,0.156851]
[1724676512265,0.3019,63760.0,63749.0,0.313728]
[1724676512468,0.3019,63760.0,63751.0,0.156859]
[1724676512739,0.19,63759.0,63754.0,0.002]
[1724676512946,0.2999,63758.0,63754.0,0.002]
[1724676513174,0.2999,63758.0,63752.0,0.156857]
[1724676513380,0.3030353,63758.0,63751.0,0.156859]
[1724676513984,0.2999,63758.0,63754.0,0.003]
[1724676514385,0.2999,63758.0,63752.0,0.156857]
[1724676514613,0.2999,63758.0,63753.0,0.156854]
[1724676515057,0.2999,63758.0,63752.0,0.156857]
[1724676515475,0.2999,63758.0,63753.0,0.156854]
[1724676515701,0.2999,63758.0,63754.0,0.15685]
[1724676515905,0.2999,63758.0,63753.0,0.313706]
[1724676516102,0.2999,63758.0,63756.0,0.156847]
[1724676516319,0.2999,63758.0,63754.0,0.160852]
[1724676516526,0.2999,63758.0,63754.0,0.004]
[1724676516729,0.2999,63758.0,63752.0,0.156855]
[1724676516929,0.2999,63758.0,63753.0,0.004]
[1724676517344,0.2999,63758.0,63753.0,0.31371]
[1724676517547,0.2999,63758.0,63754.0,0.160852]
[1724676518027,0.2999,63758.0,63754.0,0.156852]
[1724676518224,0.2999,63758.0,63753.0,0.156855]
[1724676518433,0.2999,63758.0,63753.0,0.313708]
[1724676518650,0.2999,63758.0,63755.0,0.156849]
[1724676519016,0.2999,63758.0,63753.0,0.156853]
[1724676519403,0.2999,63758.0,63753.0,0.160853]
[1724676519606,0.2999,63758.0,63753.0,0.156853]
[1724676519808,0.2999,63758.0,63749.0,0.000824]
[1724676519809,0.3030353,63758.0,63749.0,0.314551]
[1724676520013,0.3030353,63758.0,63755.0,0.004]
[1724676520425,0.3030353,63758.0,63750.0,0.15617801]
[1724676520628,0.3030353,63758.0,63753.0,0.004]
[1724676521036,0.3030353,63758.0,63750.0,0.31303901]
[1724676521303,0.3030353,63758.0,63751.0,0.02644751]
[1724676521480,0.3030353,63758.0,63755.0,0.004]
[1724676522658,0.3030353,63758.0,63750.0,0.15617801]
[1724676523062,0.3030353,63758.0,63753.0,0.004]
[1724676523308,0.3030353,63758.0,63750.0,0.15617801]
[1724676523739,0.3030353,63758.0,63755.0,0.004]
[1724676524089,0.2999,63758.0,63755.0,0.004]
[1724676524362,0.2999,63758.0,63750.0,0.31304001]
[1724676524822,0.2999,63758.0,63751.0,0.02644738]
[1724676524994,0.2999,63758.0,63750.0,0.31304001]
[1724676524995,0.2999,63758.0,63753.0,0.004]
[1724676526986,0.2999,63758.0,63751.0,0.313718]
[1724676527187,0.2999,63758.0,63752.0,0.156857]
[1724676528182,0.2999,63758.0,63753.0,0.004]
[1724676528369,0.2999,63758.0,63752.0,0.156857]
[1724676528713,0.2999,63758.0,63752.0,0.160857]
[1724676528918,0.2999,63758.0,63752.0,0.156857]
[1724676530501,0.2999,63758.0,63753.0,0.004]
[1724676530702,0.2999,63758.0,63751.0,0.156859]
[1724676530904,0.3030353,63758.0,63751.0,0.156859]
[1724676531109,0.3030353,63758.0,63752.0,0.004]
[1724676531243,0.3030353,63758.0,63751.0,0.156859]